bitfinex-derivatives/quotes_BNBF0:USTF0_20250128
["timestamp","ask_amount","ask_price","bid_price","bid_amount"]
[1738070184474,0.27210124,675.82,674.74,1.11063172]
[1738070184677,0.27210124,675.81,674.74,1.11063172]
[1738070184877,0.27210124,675.82,674.74,1.11063172]
[1738070185180,0.27210124,675.81,674.74,1.11063172]
[1738070185378,0.27210124,675.82,674.74,1.11063172]
[1738070185579,0.27210124,675.81,674.74,1.11063172]
[1738070185779,0.27210124,675.82,674.74,1.11063172]
[1738070185978,0.27210124,675.81,674.74,1.11063172]
[1738070186172,0.27210124,675.82,674.74,1.11063172]
[1738070186386,0.27210124,675.81,674.74,1.11063172]
[1738070186577,0.27210124,675.82,674.74,1.11063172]
[1738070186780,1.37201608,675.81,674.73,1.11063172]
[1738070186979,0.27210124,675.8,674.73,1.11063172]
[1738070190184,1.09991484,675.79,674.73,1.11063172]
[1738070190483,0.27210124,675.78,674.73,1.11063172]
[1738070194489,1.09991484,675.7,674.72,1.11063172]
[1738070194691,0.27210124,675.69,674.72,1.11063172]
[1738070195089,1.09991484,675.7,674.72,1.11063172]
[1738070196081,0.27216089,675.69,674.72,1.11063172]
[1738070197194,0.27216089,675.69,674.51,0.29651154]
[1738070197584,1.09991484,675.81,674.51,0.29651154]
[1738070197585,0.27216089,675.68,674.51,0.29651154]
[1738070197894,0.27216089,675.67,674.51,0.29651154]
[1738070198087,0.27216089,675.8,674.51,0.29651154]
[1738070198288,0.29594992,675.79,674.51,0.29651154]
[1738070198488,0.27216198,675.78,674.51,0.29651154]
[1738070200115,1.37207682,675.78,674.51,0.29651154]
[1738070200290,0.27216198,675.77,674.51,0.29651154]
[1738070202686,1.09991484,675.78,674.51,0.29651154]
[1738070203010,0.272139,675.77,674.51,0.29651154]
[1738070203682,1.09991484,675.71,674.65,1.11063172]
[1738070203886,0.272139,675.7,674.65,1.11063172]
[1738070207292,0.272139,675.7,674.51,0.29651154]
[1738070207293,0.272139,675.7,674.64,1.11063172]
[1738070210190,0.272139,675.7,674.61,1.11063172]
[1738070212194,0.272139,675.7,674.51,0.29651154]
[1738070212195,0.272139,675.7,674.6,1.11063172]
[1738070215090,1.09991484,675.7,674.61,1.11063172]
[1738070215393,0.27215581,675.69,674.61,1.11063172]
[1738070218000,0.27215581,675.69,674.51,1.40714326]
[1738070218198,0.27215581,675.73,674.51,1.40714326]
[1738070218898,0.27217246,675.72,674.51,1.40714326]
[1738070219091,0.27217246,675.73,674.51,1.40714326]
[1738070219292,0.27217246,675.72,674.51,1.40714326]
[1738070219496,0.27217246,675.73,674.51,1.40714326]
[1738070219699,0.27217246,675.72,674.51,1.40714326]
[1738070219897,0.27217246,675.73,674.51,1.40714326]
[1738070220597,1.54620853,675.74,674.51,1.40714326]
[1738070220797,0.27217319,675.73,674.51,1.40714326]
[1738070220999,1.09991484,675.71,674.51,0.29651154]
[1738070221201,0.27217319,675.7,674.51,0.29651154]
[1738070223698,0.27217319,675.71,674.51,0.29651154]
[1738070223906,1.09991484,675.72,674.51,0.29651154]
[1738070224092,0.2721737,675.71,674.51,0.29651154]
[1738070226400,1.39590418,675.7,674.51,0.29651154]
[1738070226594,0.2721737,675.69,674.51,0.29651154]
[1738070227202,0.2959981,675.68,674.51,0.29651154]
[1738070227399,0.2721737,675.67,674.51,0.29651154]
[1738070227601,0.56821766,675.66,674.51,0.29651154]
[1738070227803,0.2722108,675.65,674.51,0.29651154]
[1738070229903,0.56822204,675.65,674.51,0.29651154]
[1738070230105,0.2722108,675.64,674.51,0.29651154]
[1738070237409,0.2722108,675.64,674.51,0.28841379]
[1738070248425,1.09991484,675.59,674.51,0.28841379]
[1738070248617,0.2722108,675.58,674.51,0.28841379]
[1738070249251,1.09991484,675.59,674.51,0.28841379]
[1738070250119,0.27221863,675.58,674.51,0.28841379]
[1738070251819,1.09991484,675.56,674.51,0.28841379]
[1738070252015,0.27221863,675.55,674.51,0.28841379]
[1738070252812,1.09991484,675.56,674.51,0.28841379]
[1738070255421,0.29601124,675.65,674.51,0.28841379]
[1738070265527,0.27216546,675.64,674.51,0.28841379]
[1738070266228,0.29601124,675.65,674.51,0.28841379]
[1738070277333,0.27215338,675.64,674.51,0.28841379]
[1738070280930,0.27215338,675.64,674.55,1.11063172]
[1738070283545,0.27215338,675.64,674.51,0.28841379]
[1738070287434,0.27215338,675.64,674.6,1.11063172]
[1738070287636,1.39592608,675.65,674.6,1.11063172]
[1738070287831,0.27216939,675.64,674.6,1.11063172]
[1738070289838,0.29602001,675.63,674.51,0.28841379]
[1738070290141,0.27216939,675.62,674.51,0.28841379]
[1738070296539,0.56819378,675.62,674.51,0.28841379]
[1738070296738,0.27216939,675.61,674.51,0.28841379]
[1738070297440,0.29603315,675.6,674.51,0.28841379]
[1738070297641,0.27216939,675.59,674.51,0.28841379]
[1738070297848,0.29604191,675.58,674.51,0.28841379]
[1738070298041,0.27216939,675.57,674.51,0.28841379]
[1738070298747,1.54664948,675.56,674.51,0.28841379]
[1738070298946,0.27216939,675.55,674.51,0.28841379]
[1738070299646,1.54664948,675.56,674.51,0.28841379]
[1738070299847,0.27224569,675.55,674.51,0.28841379]
[1738070303153,1.54664948,675.56,674.51,0.28841379]
[1738070303350,0.27224516,675.55,674.51,0.28841379]
[1738070304252,1.54664948,675.56,674.51,0.28841379]
[1738070304446,0.27224637,675.55,674.51,0.28841379]
[1738070307355,0.27224637,675.55,674.3,1.11063172]
[1738070307554,0.29605944,675.54,674.3,1.11063172]
[1738070307762,0.27224637,675.53,674.28,1.11063172]
[1738070308258,0.27224637,675.52,674.28,1.11063172]
[1738070308457,0.27225322,675.51,674.28,1.11063172]
[1738070308659,0.27225322,675.53,674.28,1.11063172]
[1738070308855,0.27225322,675.52,674.28,1.11063172]
[1738070309056,0.27225322,675.51,674.28,1.11063172]
[1738070309263,0.27225322,675.53,674.28,1.11063172]
[1738070309459,0.27225322,675.52,674.28,1.11063172]
[1738070309659,0.27225322,675.51,674.28,1.11063172]
[1738070309863,0.27225322,675.5,674.28,1.11063172]
[1738070310057,0.27225322,675.53,674.28,1.11063172]
[1738070310259,0.27225322,675.52,674.28,1.11063172]
[1738070310460,0.27225322,675.51,674.28,1.11063172]
[1738070311262,1.54679843,675.52,674.28,1.11063172]
[1738070312061,0.27225447,675.51,674.28,1.11063172]
[1738070313025,1.09991484,675.5,674.28,1.11063172]
[1738070313161,0.27225447,675.49,674.3,1.11063172]
[1738070314562,1.09991484,675.5,674.3,1.11063172]
[1738070314762,0.27229675,675.49,674.3,1.11063172]
[1738070316465,0.27229675,675.49,674.07,1.11063172]
[1738070316663,0.27229675,675.51,674.07,1.11063172]
[1738070316959,2.64671327,675.52,674.07,1.11063172]
[1738070317163,0.27231951,675.51,674.07,1.11063172]
[1738070317361,0.29607698,675.5,674.07,1.11063172]
[1738070317563,0.27231951,675.49,674.07,1.11063172]
[1738070317864,0.29608574,675.48,674.07,1.11063172]
[1738070318065,0.27232967,675.47,674.07,1.11063172]
[1738070318364,0.29609451,675.46,674.07,1.11063172]
[1738070318566,0.27232967,675.45,674.07,1.11063172]
[1738070318762,0.29610328,675.44,674.07,1.11063172]
[1738070318960,0.27232967,675.43,674.07,1.11063172]
[1738070319264,0.29611204,675.42,674.07,1.11063172]
[1738070319463,0.27232967,675.41,673.88,1.11063172]
[1738070319867,0.27232967,675.41,673.89,0.29678434]
[1738070320165,0.29612081,675.4,673.89,0.29678434]
[1738070320368,0.27232967,675.39,673.89,0.29678434]
[1738070320566,0.29612958,675.38,673.89,0.29678434]
[1738070320768,0.27232967,675.37,673.89,0.29678434]
[1738070320968,0.29613835,675.36,673.89,0.29678434]
[1738070321165,0.27232967,675.35,673.89,0.29678434]
[1738070321362,0.29614712,675.34,673.89,0.29678434]
[1738070321580,0.27232152,675.33,673.89,0.29678434]
[1738070321867,0.56847303,675.33,673.89,0.29678434]
[1738070322060,0.27232152,675.32,673.89,0.29678434]
[1738070324074,0.27232601,675.31,673.89,0.29678434]
[1738070324267,0.27232601,675.3,673.89,0.29678434]
[1738070324569,0.27232601,675.29,673.89,0.29678434]
[1738070324770,0.27232601,675.32,673.89,0.29678434]
[1738070324971,0.29615151,675.33,673.89,0.29678434]
[1738070325178,0.27231921,675.32,673.89,0.29678434]
[1738070326665,0.27231784,675.31,673.89,0.29678434]
[1738070326864,0.27231784,675.3,673.89,0.29678434]
[1738070327066,0.27231784,675.29,673.89,0.29678434]
[1738070327270,0.27231784,675.28,673.89,0.29678434]
[1738070327476,0.27231784,675.27,673.89,0.29678434]
[1738070327671,0.27231784,675.26,673.89,0.29678434]
[1738070327865,0.27231784,675.25,673.89,0.29678434]
[1738070328071,0.27231784,675.32,673.89,0.29678434]
[1738070328271,0.27231784,675.31,673.89,0.29678434]
[1738070328473,0.27231784,675.32,673.89,0.29678434]
[1738070328780,0.27231784,675.31,674.05,1.11063172]
[1738070328972,0.27231784,675.32,674.05,1.11063172]
[1738070330271,0.27231648,675.31,674.05,1.11063172]
[1738070330466,0.27231648,675.3,674.05,1.11063172]
[1738070330678,0.27231648,675.32,674.05,1.11063172]
[1738070330871,0.27231648,675.31,674.05,1.11063172]
[1738070331073,0.27231648,675.32,674.05,1.11063172]
[1738070331372,0.27231648,675.31,674.05,1.11063172]
[1738070331573,0.27231648,675.32,674.05,1.11063172]
[1738070331868,0.27231648,675.31,674.05,1.11063172]
[1738070332069,0.27231648,675.32,674.05,1.11063172]
[1738070332270,0.27231648,675.31,674.12,1.11063172]
[1738070332570,0.27231648,675.3,674.12,1.11063172]
[1738070332772,0.27231648,675.32,674.12,1.11063172]
[1738070333572,0.29615151,675.33,674.12,1.11063172]
[1738070333773,0.27232275,675.32,674.12,1.11063172]
[1738070335477,0.27231793,675.31,674.12,1.11063172]
[1738070335675,0.27231793,675.32,674.12,1.11063172]
[1738070336179,0.27231793,675.32,674.08,1.11063172]
[1738070337179,0.27228877,675.31,674.08,1.11063172]
[1738070337481,0.27228877,675.3,674.08,1.11063172]
[1738070337680,0.27228877,675.32,674.08,1.11063172]
[1738070337883,0.27228877,675.31,674.08,1.11063172]
[1738070338182,0.27228877,675.3,674.08,1.11063172]
[1738070338386,0.29615151,675.33,674.08,1.11063172]
[1738070338387,0.27228877,675.32,674.08,1.11063172]
[1738070338579,0.27228877,675.31,674.08,1.11063172]
[1738070338875,0.27228877,675.32,674.08,1.11063172]
[1738070339072,0.27228877,675.31,674.08,1.11063172]
[1738070339275,0.27228877,675.32,674.12,1.11063172]
[1738070340683,0.27228668,675.31,674.12,1.11063172]
[1738070340879,0.27228668,675.3,674.12,1.11063172]
[1738070341074,0.27228668,675.29,674.12,1.11063172]
[1738070341297,0.27228668,675.32,674.12,1.11063172]
[1738070341474,0.27228668,675.31,674.12,1.11063172]
[1738070341676,0.27228668,675.3,674.12,1.11063172]
[1738070341877,0.27228668,675.29,674.12,1.11063172]
[1738070342083,0.27228668,675.28,674.12,1.11063172]
[1738070342283,0.27228668,675.32,674.12,1.11063172]
[1738070342480,0.27228638,675.31,674.12,1.11063172]
[1738070342701,0.27228638,675.32,674.12,1.11063172]
[1738070342876,0.27228638,675.31,674.17,1.11063172]
[1738070343082,0.27228638,675.32,674.17,1.11063172]
[1738070343282,0.27228638,675.31,674.17,1.11063172]
[1738070343579,0.27228638,675.3,674.17,1.11063172]
[1738070343777,0.27228638,675.29,674.17,1.11063172]
[1738070343982,0.27228638,675.32,674.17,1.11063172]
[1738070344278,0.27228638,675.31,674.17,1.11063172]
[1738070344484,0.27228638,675.3,674.17,1.11063172]
[1738070344782,0.27228638,675.29,674.17,1.11063172]
[1738070344985,0.27228638,675.32,674.17,1.11063172]
[1738070345283,0.27228638,675.31,674.36,1.11063172]
[1738070345483,0.27228638,675.3,674.36,1.11063172]
[1738070345683,0.27228638,675.29,674.36,1.11063172]
[1738070345899,0.29615151,675.33,674.36,1.11063172]
[1738070347887,0.29615151,675.33,674.05,1.11063172]
[1738070353688,1.54715373,675.32,674.05,1.11063172]
[1738070354288,1.54715373,675.32,674.04,1.11063172]
[1738070355682,0.27228472,675.31,674.04,1.11063172]
[1738070356191,0.29615151,675.33,674.04,1.11063172]
[1738070356192,0.27227169,675.3,674.04,1.11063172]
[1738070356489,0.27227169,675.29,674.04,1.11063172]
[1738070356683,0.27227169,675.32,674.04,1.11063172]
[1738070356882,0.29615151,675.33,674.05,0.29671389]
[1738070357187,0.27226726,675.32,674.05,0.29671389]
[1738070357599,0.27226726,675.32,674.29,1.11063172]
[1738070360388,0.27226726,675.32,674.31,1.11063172]
[1738070361390,0.27226451,675.31,674.31,1.11063172]
[1738070361688,0.27226451,675.3,674.31,1.11063172]
[1738070361888,0.27226451,675.32,674.31,1.11063172]
[1738070362088,0.29615151,675.33,674.31,1.11063172]
[1738070362388,0.27226145,675.32,674.31,1.11063172]
[1738070363089,0.27226134,675.31,674.31,1.11063172]
[1738070363299,0.27226134,675.3,674.31,1.11063172]
[1738070363491,0.27226134,675.3,674.06,0.704658]
[1738070363492,0.27226134,675.32,674.32,1.11063172]
[1738070363687,0.29615151,675.33,674.32,1.11063172]
[1738070363989,0.27225956,675.32,674.32,1.11063172]
[1738070364798,0.29615151,675.33,674.32,1.11063172]
[1738070364991,0.27226122,675.32,674.32,1.11063172]
[1738070365596,0.29615151,675.33,674.32,1.11063172]
[1738070367094,0.29615151,675.33,674.06,0.704658]
[1738070367095,0.29615151,675.33,674.36,1.11063172]
[1738070370405,0.29615151,675.33,674.13,1.11063172]
[1738070372795,0.29615151,675.33,674.14,1.54695887]
[1738070373296,0.29615151,675.33,674.15,1.11063172]
[1738070375900,0.29615151,675.33,674.14,1.54695887]
[1738070378601,0.29615151,675.33,674.17,1.11063172]
[1738070381203,0.29615151,675.33,674.15,1.11063172]
[1738070384203,0.29615151,675.33,674.16,1.11063172]
[1738070390413,0.29615151,675.33,674.34,1.11063172]
[1738070391908,0.2722711,675.32,674.34,1.11063172]
[1738070392107,0.29615151,675.33,674.34,1.11063172]
[1738070392508,0.27227134,675.32,674.34,1.11063172]
[1738070392805,0.27227729,675.31,674.34,1.11063172]
[1738070393010,0.27227729,675.32,674.34,1.11063172]
[1738070393213,0.29615151,675.33,674.38,1.11063172]
[1738070395211,0.27226814,675.32,674.38,1.11063172]
[1738070399732,0.27226073,675.31,674.38,1.11063172]
[1738070399905,0.29615151,675.33,674.38,1.11063172]
[1738070400613,1.09991484,675.32,674.45,1.11063172]
[1738070403612,0.29615151,675.33,674.38,1.11063172]
[1738070406024,0.29615151,675.33,674.26,1.11063172]
[1738070409216,0.29615151,675.33,674.28,1.11063172]
[1738070412235,0.29615151,675.33,674.27,1.11063172]
[1738070415019,0.29615151,675.33,674.27,1.4072488]
[1738070415420,0.29615151,675.33,674.47,1.11063172]
[1738070418520,0.29615151,675.33,674.43,1.11063172]
[1738070418923,0.27224082,675.32,674.43,1.11063172]
[1738070419426,0.29615151,675.33,674.43,1.11063172]
[1738070421222,0.29615151,675.33,674.41,1.11063172]
[1738070422831,0.27223252,675.32,674.41,1.11063172]
[1738070424053,0.27224004,675.31,674.41,1.11063172]
[1738070424228,0.29615151,675.33,674.41,1.11063172]
[1738070424424,0.27223614,675.32,674.45,1.11063172]
[1738070425835,0.27223916,675.31,674.45,1.11063172]
[1738070426029,0.27223916,675.3,674.45,1.11063172]
[1738070426231,0.29615151,675.33,674.45,1.11063172]
[1738070426432,0.27223849,675.32,674.45,1.11063172]
[1738070427232,0.27223947,675.31,674.45,1.11063172]
[1738070427435,0.27223947,675.3,674.45,1.11063172]
[1738070427632,0.27223947,675.32,674.45,1.11063172]
[1738070427831,0.29615151,675.33,674.45,1.11063172]
[1738070428041,0.27224077,675.32,674.45,1.11063172]
[1738070429434,0.29615151,675.33,674.45,1.11063172]
[1738070430339,0.2722457,675.32,674.45,1.11063172]
[1738070432340,0.29615151,675.33,674.45,1.11063172]
[1738070440858,0.29615151,675.33,674.28,1.11063172]
[1738070445948,0.29615151,675.33,674.41,1.11063172]
[1738070449191,0.29615151,675.33,674.27,0.29661708]
[1738070449192,0.29615151,675.33,674.39,1.11063172]
[1738070449652,0.2722427,675.32,674.39,1.11063172]
[1738070451152,0.2722427,675.32,674.27,0.29661708]
[1738070451153,0.2722427,675.32,674.44,1.11063172]
[1738070451652,0.29615151,675.33,674.44,1.11063172]
[1738070454659,0.27223455,675.32,674.44,1.11063172]
[1738070456158,0.29615151,675.33,674.44,1.11063172]
[1738070456559,0.27221905,675.32,674.44,1.11063172]
[1738070456958,0.27221905,675.32,674.27,0.29661708]
[1738070456959,0.27221905,675.32,674.51,1.11063172]
[1738070457158,0.29615151,675.33,674.51,1.11063172]
[1738070459858,0.29615151,675.33,674.57,1.11063172]
[1738070460655,1.09991484,675.4,674.57,1.11063172]
[1738070462563,1.54650629,675.69,674.36,1.11063172]
[1738070463767,0.27216483,675.68,674.36,1.11063172]
[1738070464757,1.54650629,675.69,674.36,1.11063172]
[1738070464961,0.27216114,675.68,674.36,1.11063172]
[1738070465756,0.27216114,675.68,674.55,1.11063172]
[1738070466464,1.54650629,675.69,674.55,1.11063172]
[1738070466661,0.27216081,675.68,674.55,1.11063172]
[1738070468263,1.09991484,675.7,674.55,1.11063172]
[1738070468469,0.27215874,675.69,674.55,1.11063172]
[1738070468667,0.27215874,675.69,674.27,0.29661708]
[1738070468668,0.27215874,675.69,674.49,1.11063172]
[1738070468863,0.27215874,675.75,674.49,1.11063172]
[1738070469065,0.27215874,675.74,674.49,1.11063172]
[1738070469266,0.27215874,675.75,674.49,1.11063172]
[1738070469478,0.27215874,675.74,674.49,1.11063172]
[1738070469764,0.27215874,675.73,674.49,1.11063172]
[1738070469966,0.27215874,675.75,674.49,1.11063172]
[1738070470167,0.27215874,675.74,674.49,1.11063172]
[1738070470366,0.27215874,675.75,674.49,1.11063172]
[1738070470566,0.27215874,675.74,674.49,1.11063172]
[1738070470761,0.27215874,675.73,674.49,1.11063172]
[1738070470962,0.27215874,675.75,674.49,1.11063172]
[1738070471162,0.27215874,675.74,674.49,1.11063172]
[1738070471362,0.27215874,675.73,674.49,1.11063172]
[1738070471562,0.27215874,675.72,674.49,1.11063172]
[1738070471762,0.27214295,675.71,674.51,1.11063172]
[1738070471963,0.27214295,675.79,674.51,1.11063172]
[1738070472167,0.27214295,675.78,674.51,1.11063172]
[1738070472468,0.27214295,675.77,674.51,1.11063172]
[1738070472667,0.27214295,675.76,674.51,1.11063172]
[1738070472963,0.27214295,675.75,674.51,1.11063172]
[1738070473168,0.27214295,675.74,674.51,1.11063172]
[1738070473373,0.27214295,675.79,674.51,1.11063172]
[1738070473575,0.27214295,675.78,674.51,1.11063172]
[1738070473884,0.27214295,675.77,674.51,1.11063172]
[1738070474067,0.27214295,675.76,674.51,1.11063172]
[1738070474267,0.27214295,675.75,674.42,1.11063172]
[1738070474469,0.27214295,675.74,674.42,1.11063172]
[1738070474664,0.27214295,675.8,674.42,1.11063172]
[1738070474868,0.27214295,675.79,674.43,0.29654671]
[1738070475068,1.54616846,675.81,674.43,0.29654671]
[1738070475366,0.27214778,675.8,674.43,0.29654671]
[1738070480165,0.27214778,675.8,674.47,1.11063172]
[1738070480374,0.27211284,675.79,674.47,1.11063172]
[1738070480576,0.27211284,675.78,674.48,0.29652473]
[1738070480768,0.27211284,675.77,674.48,0.29652473]
[1738070480965,0.27211284,675.76,674.48,0.29652473]
[1738070481168,0.27211284,675.8,674.48,0.29652473]
[1738070481373,0.27211284,675.79,674.48,0.29652473]
[1738070481570,0.27211284,675.78,674.48,0.29652473]
[1738070481774,0.27211284,675.77,674.48,0.29652473]
[1738070482173,0.27211284,675.76,674.48,0.29652473]
[1738070482368,0.27211284,675.85,674.48,0.29652473]
[1738070482568,0.27211284,675.84,674.48,0.29652473]
[1738070482777,0.27211284,675.85,674.48,0.29652473]
[1738070483071,0.27211284,675.84,674.48,0.29652473]
[1738070483271,0.27211284,675.83,674.48,0.29652473]
[1738070483472,0.27211284,675.85,674.48,0.29652473]
[1738070483670,0.27210889,675.84,674.48,0.29652473]
[1738070483874,0.27210889,675.83,674.48,0.29652473]
[1738070484073,0.27210889,675.85,674.48,0.29652473]
[1738070484277,0.27210889,675.84,674.48,0.29652473]
[1738070484586,0.27210889,675.83,674.48,0.29652473]
[1738070484774,0.27210889,675.82,674.48,0.29652473]
[1738070484975,0.27210889,675.81,674.48,0.29652473]
[1738070485171,0.27210889,675.85,674.48,0.29652473]
[1738070485369,1.54608832,675.86,674.48,0.29652473]
[1738070485574,0.27211338,675.85,674.48,0.29652473]
[1738070486471,1.54608832,675.86,674.48,0.29652473]
[1738070487278,1.54608832,675.86,674.49,1.11063172]
[1738070487976,1.54608832,675.86,674.5,0.29651593]
[1738070493578,1.09991484,676.21,674.5,0.29651593]
[1738070493874,1.54597956,675.99,674.5,0.29651593]
[1738070494079,0.27205817,675.98,674.5,0.29651593]
[1738070494278,0.27205817,676.19,674.5,0.29651593]
[1738070494574,1.54590517,675.99,674.5,0.29651593]
[1738070494799,0.29577923,676.18,674.5,0.29651593]
[1738070494977,1.54585366,676.02,674.5,0.29651593]
[1738070495177,0.29577923,676.18,674.5,0.29651593]
[1738070495374,1.54575639,676.09,674.5,0.29651593]
[1738070495578,0.27203,676.08,674.5,0.29651593]
[1738070495780,0.29577923,676.18,674.5,0.29651593]
[1738070496079,1.09991484,676.0,674.75,1.11063172]
[1738070498580,1.09991484,676.0,674.76,0.29640168]
[1738070498778,0.27201791,675.99,674.76,0.29640168]
[1738070498976,1.54555616,676.09,674.76,0.29640168]
[1738070499174,0.29577923,676.18,674.76,0.29640168]
[1738070499377,1.54552184,676.15,674.76,0.29640168]
[1738070500384,0.29577923,676.18,674.76,0.29640168]
[1738070503284,0.27194386,676.17,674.76,0.29640168]
[1738070505790,0.29577923,676.18,674.76,0.29640168]
[1738070532918,0.29577923,676.18,674.84,1.11063172]
[1738070533122,0.29577923,676.18,674.85,0.29636215]
[1738070537115,0.29577923,676.18,674.9,1.11063172]
[1738070537315,0.29577923,676.18,674.91,0.2963358]
[1738070540318,0.29577923,676.18,674.97,1.11063172]
[1738070541021,0.29577923,676.18,674.98,0.29630507]
[1738070546823,0.29577923,676.18,674.99,1.11063172]
[1738070547022,0.29577923,676.18,675.0,0.29629629]
[1738070551026,0.29577923,676.18,675.11,1.11063172]
[1738070551719,1.54487576,676.45,675.12,0.29624363]
[1738070551932,0.27185574,676.44,675.12,0.29624363]
[1738070552321,0.27185735,676.43,675.12,0.29624363]
[1738070552518,0.27185735,676.44,675.12,0.29624363]
[1738070552718,0.27185735,676.43,675.12,0.29624363]
[1738070553024,0.27185735,676.42,675.12,0.29624363]
[1738070553224,1.54487576,676.45,675.12,0.29624363]
[1738070553225,0.27185735,676.44,675.12,0.29624363]
[1738070553423,0.27185735,676.43,675.12,0.29624363]
[1738070553627,1.09991484,676.43,675.3,1.11063172]
[1738070554029,0.27185136,676.42,675.3,1.11063172]
[1738070554725,1.09991484,676.43,675.3,1.11063172]
[1738070557433,2.64452774,676.55,675.2,1.11063172]
[1738070557632,0.27185928,676.54,675.2,1.11063172]
[1738070559332,0.27186017,676.53,675.2,1.11063172]
[1738070559524,0.27186017,676.54,675.2,1.11063172]
[1738070559730,0.27186017,676.53,675.2,1.11063172]
[1738070559931,0.27186017,676.54,675.2,1.11063172]
[1738070560732,0.27186017,676.54,675.15,1.11063172]
[1738070560932,0.27186017,676.54,675.16,0.29622607]
[1738070563145,0.29562621,676.53,675.16,0.29622607]
[1738070563340,0.27186017,676.52,675.16,0.29622607]
[1738070563537,0.29563494,676.51,675.16,0.29622607]
[1738070563741,0.27186017,676.5,675.16,0.29622607]
[1738070564033,0.29564369,676.49,675.16,0.29622607]
[1738070564239,0.27186017,676.48,675.18,1.11063172]
[1738070564534,0.29565243,676.47,675.18,1.11063172]
[1738070564744,0.27186017,676.46,675.18,1.11063172]
[1738070565132,0.29566117,676.45,675.18,1.11063172]
[1738070565337,0.27186017,676.44,675.18,1.11063172]
[1738070566642,1.09991484,676.39,675.25,1.11063172]
[1738070566841,0.27186017,676.38,675.25,1.11063172]
[1738070569348,0.27186017,676.38,675.21,1.11063172]
[1738070569542,1.09991484,676.42,675.21,1.11063172]
[1738070569543,0.27186017,676.41,675.21,1.11063172]
[1738070569743,0.27186017,676.4,675.21,1.11063172]
[1738070569943,0.27188029,676.39,675.21,1.11063172]
[1738070570144,0.27188029,676.41,675.21,1.11063172]
[1738070570338,0.27188029,676.4,675.21,1.11063172]
[1738070570537,0.27188029,676.41,675.21,1.11063172]
[1738070570744,0.27188029,676.4,675.21,1.11063172]
[1738070570966,0.27188029,676.41,675.21,1.11063172]
[1738070571143,0.27188029,676.4,675.21,1.11063172]
[1738070571340,0.27188029,676.41,675.21,1.11063172]
[1738070571545,0.27188029,676.4,675.21,1.11063172]
[1738070571847,0.27188029,676.39,675.21,1.11063172]
[1738070572039,0.27188029,676.38,675.21,1.11063172]
[1738070572347,0.27188029,676.37,675.22,1.11063172]
[1738070572543,0.27188029,676.42,675.22,1.11063172]
[1738070572746,0.27188029,676.41,675.22,1.11063172]
[1738070572947,0.27188029,676.4,675.22,1.11063172]
[1738070573142,0.27188029,676.42,675.22,1.11063172]
[1738070573342,0.27188029,676.41,675.22,1.11063172]
[1738070573647,0.27188029,676.4,675.22,1.11063172]
[1738070573855,0.27188029,676.42,675.22,1.11063172]
[1738070574942,0.27188029,676.42,675.18,1.11063172]
[1738070575148,0.27188029,676.41,675.18,1.11063172]
[1738070575342,0.27188029,676.44,675.18,1.11063172]
[1738070575548,0.27188029,676.43,675.18,1.11063172]
[1738070575743,1.54471003,676.43,675.18,1.11063172]
[1738070575943,0.27188029,676.42,675.18,1.11063172]
[1738070578652,0.27187929,676.41,675.18,1.11063172]
[1738070578847,0.27187929,676.42,675.18,1.11063172]
[1738070579053,0.27187929,676.41,675.18,1.11063172]
[1738070579357,0.27187929,676.4,675.2,1.11063172]
[1738070579547,0.27187929,676.39,675.2,1.11063172]
[1738070579747,0.27187929,676.38,675.2,1.11063172]
[1738070579948,0.27187929,676.37,675.2,1.11063172]
[1738070580147,0.27187929,676.42,675.2,1.11063172]
[1738070580352,0.27187929,676.41,675.2,1.11063172]
[1738070580547,0.27187929,676.42,675.2,1.11063172]
[1738070580752,0.27187929,676.41,675.2,1.11063172]
[1738070580953,0.27187929,676.42,675.2,1.11063172]
[1738070581156,0.27187929,676.41,675.2,1.11063172]
[1738070581360,0.27187929,676.42,675.2,1.11063172]
[1738070581553,0.27187929,676.41,675.2,1.11063172]
[1738070581754,0.27187929,676.42,675.2,1.11063172]
[1738070581954,0.27187929,676.41,675.2,1.11063172]
[1738070582147,0.27187929,676.42,675.2,1.11063172]
[1738070582353,1.09991484,676.4,675.25,1.11063172]
[1738070582554,0.27187929,676.39,675.25,1.11063172]
[1738070585659,1.09991484,676.33,675.3,1.11063172]
[1738070585853,0.27187929,676.32,675.3,1.11063172]
[1738070587153,1.09991484,676.33,675.3,1.11063172]
[1738070587354,1.09991484,676.33,675.31,1.11063172]
[1738070587355,0.2718754,676.32,675.31,1.11063172]
[1738070589785,1.09991484,676.31,675.31,1.11063172]
[1738070590058,0.2718754,676.3,675.31,1.11063172]
[1738070590760,0.27187483,676.29,675.31,1.11063172]
[1738070590959,0.27187483,676.3,675.31,1.11063172]
[1738070591258,0.27187483,676.29,675.31,1.11063172]
[1738070591458,0.27187483,676.3,675.31,1.11063172]
[1738070591659,0.27187483,676.29,675.31,1.11063172]
[1738070591862,0.27187483,676.3,675.31,1.11063172]
[1738070592060,0.27187483,676.29,675.31,1.11063172]
[1738070592363,0.27187483,676.28,675.3,1.11063172]
[1738070592558,0.27187483,676.31,675.3,1.11063172]
[1738070592759,0.27187483,676.3,675.3,1.11063172]
[1738070593060,0.27187483,676.29,675.3,1.11063172]
[1738070593262,0.27187483,676.28,675.3,1.11063172]